{"text_format":"1","workbook":"xlsx","n_sheets":2,"sheets":["Skráningarblað keppenda","Skráningarblað starfsmanna"],"not_rendered":{"charts":0,"images":0,"macros":1,"external_links":0,"defined_names":0,"comments":0,"pivot_tables":0},"unopened":[],"bounds":{"document_bytes":16777216,"sheet_cells":100000,"rows_first":2000,"rows_last":500,"rows_between":2000,"halvings":0,"cell_chars":16384,"cell_head_chars":4096},"cells_cut":0,"cells_raw":0,"read":"whole","date_system":"1900"}

{"sheet":"Skráningarblað keppenda","index":0,"n_rows":42,"n_cols":13,"rows_kept":42,"cut":false,"hidden":false,"merged":[[0,9,0,10]]}
[null,null,null,"Nota felliglugga",null,null,null,null,"Nota felliglugga","Merkja við \"x\""]
[null,"Fullt nafn","Félag","Geup","Kyn","Þyngd (kg)","Hæð (cm)","Aldur","Flokkur","Sparring","Poomsae"]
[1,null,null,null,null,null,null,null,null,null,null,{"$f":"AND(B3=\"\",C3=\"\",D3=\"\",E3=\"\",F3=\"\",G3=\"\",H3=\"\",I3=\"\",J3=\"\",K3=\"\")","v":true},"10. geup - hvítt belti með gulri rönd"]
[{"$f":"+A3+1","v":2},null,null,null,null,null,null,null,null,null,null,{"$f":"AND(B4=\"\",C4=\"\",D4=\"\",E4=\"\",F4=\"\",G4=\"\",H4=\"\",I4=\"\",J4=\"\",K4=\"\")","v":true},"9. geup - gult belti"]
[{"$f":"+A4+1","v":3},null,null,null,null,null,null,null,null,null,null,true,"8. geup - appelsínugult belti"]
[4,null,null,null,null,null,null,null,null,null,null,true,"7. geup - grænt belti"]
[5,null,null,null,null,null,null,null,null,null,null,true,"6. geup - blátt belti"]
[6,null,null,null,null,null,null,null,null,null,null,true,"5. geup - blátt belti með rauðri rönd"]
[7,null,null,null,null,null,null,null,null,null,null,true,"4. geup - rautt belti"]
[8,null,null,null,null,null,null,null,null,null,null,true,"3. geup - rautt belti með svartri rönd"]
[9,null,null,null,null,null,null,null,null,null,null,true,"2. geup - rautt belti með tveimur svörtum röndum"]
[10,null,null,null,null,null,null,null,null,null,null,true,"1. geup - rautt belti með þremur svörtum röndum"]
[11,null,null,null,null,null,null,null,null,null,null,true,"1. dan"]
[12,null,null,null,null,null,null,null,null,null,null,true,"2. dan"]
[13,null,null,null,null,null,null,null,null,null,null,true,"3. dan"]
[14,null,null,null,null,null,null,null,null,null,null,true,"4. dan"]
[15,null,null,null,null,null,null,null,null,null,null,true,"5. dan"]
[16,null,null,null,null,null,null,null,null,null,null,true,"6. dan"]
[17,null,null,null,null,null,null,null,null,null,null,true,"7. dan"]
[18,null,null,null,null,null,null,null,null,null,null,true,"8. dan"]
[19,null,null,null,null,null,null,null,null,null,null,true,"9. dan"]
[20,null,null,null,null,null,null,null,null,null,null,true,"10. dan"]
[21,null,null,null,null,null,null,null,null,null,null,true]
[22,null,null,null,null,null,null,null,null,null,null,true,"Minior undir 11 ára"]
[23,null,null,null,null,null,null,null,null,null,null,true,"Cadet 12-14 ára"]
[24,null,null,null,null,null,null,null,null,null,null,true,"Junior 15-17 ára"]
[25,null,null,null,null,null,null,null,null,null,null,true,"Senior 18-29 ára"]
[26,null,null,null,null,null,null,null,null,null,null,true,"Veteran 30-39 ára"]
[{"$f":"+A28+1","v":27},null,null,null,null,null,null,null,null,null,null,true,"Veteran 40+ ára"]
[28,null,null,null,null,null,null,null,null,null,null,true]
[29,null,null,null,null,null,null,null,null,null,null,true]
[30,null,null,null,null,null,null,null,null,null,null,true]
[31,null,null,null,null,null,null,null,null,null,null,true]
[{"$f":"+A33+1","v":32},null,null,null,null,null,null,null,null,null,null,true]
[33,null,null,null,null,null,null,null,null,null,null,true]
[34,null,null,null,null,null,null,null,null,null,null,true]
[35,null,null,null,null,null,null,null,null,null,null,true]
[36,null,null,null,null,null,null,null,null,null,null,true]
[37,null,null,null,null,null,null,null,null,null,null,true]
[{"$f":"+A39+1","v":38},null,null,null,null,null,null,null,null,null,null,true]
[39,null,null,null,null,null,null,null,null,null,null,true]
[{"$f":"+A41+1","v":40},null,null,null,null,null,null,null,null,null,null,true]

{"sheet":"Skráningarblað starfsmanna","index":1,"n_rows":35,"n_cols":5,"rows_kept":35,"cut":false,"hidden":false,"merged":[[0,1,0,4],[18,1,18,4]]}
[null,"LAUGARDAGUR 15. FEBRÚAR"]
[null,"Fullt nafn","Félag","Fjöldi vinnustunda","Beiðni um starfshlutverk á móti"]
[1]
[{"$f":"+A3+1","v":2}]
[{"$f":"+A4+1","v":3}]
[4]
[5]
[6]
[7]
[8]
[9]
[10]
[11]
[12]
[13]
[14]
[15]
[]
[null,"SUNNUDAGUR 16. FEBRÚAR"]
[null,"Fullt nafn","Félag","Fjöldi vinnustunda","Beiðni um starfshlutverk á móti"]
[1]
[{"$f":"+A21+1","v":2}]
[{"$f":"+A22+1","v":3}]
[4]
[5]
[6]
[7]
[8]
[9]
[10]
[11]
[12]
[13]
[14]
[15]